[Event "*** Titled Tuesday Blitz"]
[Site "Chess.com"]
[Date "2020.04.14"]
[Round "3"]
[White "Eltaj_Safarli"]
[Black "anon132639"]
[Result "0-1"]
[WhiteElo "3053"]
[BlackElo "2722"]
[TimeControl "180+1"]
[EndTime "10:30:06 PDT"]
[Termination "anon132639 won by resignation"]

1. e4 {[%clk 0:03:00.9]} 1... c5 {[%clk 0:03:00.3]} 2. Nc3 {[%clk 0:03:00.2]}
2... Nc6 {[%clk 0:03:00.5]} 3. Bb5 {[%clk 0:03:00]} 3... Nd4 {[%clk 0:02:58.2]}
4. Nf3 {[%clk 0:02:59.8]} 4... Nxb5 {[%clk 0:02:42]} 5. Nxb5 {[%clk 0:02:59.9]}
5... a6 {[%clk 0:02:39.9]} 6. Nc3 {[%clk 0:02:59.1]} 6... d6 {[%clk 0:02:34]} 7.
d4 {[%clk 0:02:59.2]} 7... cxd4 {[%clk 0:02:34.4]} 8. Qxd4 {[%clk 0:03:00.1]}
8... Nf6 {[%clk 0:02:31]} 9. Bg5 {[%clk 0:02:50.2]} 9... e6 {[%clk 0:02:29.2]}
10. O-O-O {[%clk 0:02:49.5]} 10... Be7 {[%clk 0:02:15.6]} 11. e5 {[%clk
0:02:48.7]} 11... dxe5 {[%clk 0:02:13.4]} 12. Qxe5 {[%clk 0:02:49.6]} 12... Qb6
{[%clk 0:01:38.3]} 13. Ne4 {[%clk 0:02:46.5]} 13... Nxe4 {[%clk 0:01:26.7]} 14.
Bxe7 {[%clk 0:02:43.2]} 14... Kxe7 {[%clk 0:01:24.8]} 15. Qxe4 {[%clk
0:02:42.5]} 15... f6 {[%clk 0:01:16.8]} 16. Qg4 {[%clk 0:02:30]} 16... Kf7
{[%clk 0:01:08.4]} 17. Qh5+ {[%clk 0:02:29.7]} 17... g6 {[%clk 0:01:08.7]} 18.
Qh4 {[%clk 0:02:11.5]} 18... e5 {[%clk 0:01:06.1]} 19. Rd2 {[%clk 0:02:05]}
19... Be6 {[%clk 0:01:02.4]} 20. Rhd1 {[%clk 0:02:02.7]} 20... Rac8 {[%clk
0:00:48.8]} 21. Kb1 {[%clk 0:01:36.5]} 21... h5 {[%clk 0:00:46.8]} 22. Rd6
{[%clk 0:01:26]} 22... Rc6 {[%clk 0:00:31.5]} 23. Rxc6 {[%clk 0:00:55.6]} 23...
Qxc6 {[%clk 0:00:29.9]} 24. Qb4 {[%clk 0:00:47.6]} 24... Rc8 {[%clk 0:00:30]}
25. c3 {[%clk 0:00:46.4]} 25... Bd5 {[%clk 0:00:23.5]} 26. a3 {[%clk 0:00:30.2]}
26... Qc5 {[%clk 0:00:22.5]} 27. Ne1 {[%clk 0:00:21.4]} 27... Qxb4 {[%clk
0:00:22]} 28. axb4 {[%clk 0:00:22.3]} 28... Be4+ {[%clk 0:00:19.6]} 29. Kc1
{[%clk 0:00:21.2]} 29... Ke7 {[%clk 0:00:20.2]} 30. f3 {[%clk 0:00:21.5]} 30...
Bf5 {[%clk 0:00:20.1]} 31. Nd3 {[%clk 0:00:20.5]} 31... Bxd3 {[%clk 0:00:19.7]}
32. Rxd3 {[%clk 0:00:21.4]} 32... Rd8 {[%clk 0:00:15.9]} 33. Re3 {[%clk
0:00:20.1]} 33... Ke6 {[%clk 0:00:15.3]} 34. Kc2 {[%clk 0:00:20.3]} 34... h4
{[%clk 0:00:14.8]} 35. Re4 {[%clk 0:00:19]} 35... g5 {[%clk 0:00:14.7]} 36. Rc4
{[%clk 0:00:19.1]} 36... Rd7 {[%clk 0:00:12.8]} 37. Rc8 {[%clk 0:00:18.7]} 37...
Kf5 {[%clk 0:00:12.9]} 38. Rc4 {[%clk 0:00:12.5]} 38... Rd6 {[%clk 0:00:07.9]}
39. g4+ {[%clk 0:00:09]} 39... hxg3 {[%clk 0:00:06.6]} 40. hxg3 {[%clk
0:00:09.9]} 40... b5 {[%clk 0:00:06.9]} 41. g4+ {[%clk 0:00:09.7]} 41... Ke6
{[%clk 0:00:07.2]} 42. Rc5 {[%clk 0:00:08.8]} 42... Ke7 {[%clk 0:00:05]} 43.
Rc7+ {[%clk 0:00:07.9]} 43... Ke6 {[%clk 0:00:05.3]} 44. Rc8 {[%clk 0:00:08.4]}
44... Kd5 {[%clk 0:00:03.6]} 45. Kd3 {[%clk 0:00:07.2]} 45... Ke6+ {[%clk
0:00:02.8]} 46. Ke4 {[%clk 0:00:07.3]} 46... Rd2 {[%clk 0:00:03]} 47. Rc6+
{[%clk 0:00:07]} 47... Ke7 {[%clk 0:00:03.4]} 48. Rxa6 {[%clk 0:00:05.3]} 48...
Rxb2 {[%clk 0:00:03.6]} 49. Kf5 {[%clk 0:00:03]} 49... Rf2 {[%clk 0:00:03.1]}
50. Ra7+ {[%clk 0:00:02.3]} 50... Kd6 {[%clk 0:00:03.1]} 51. Kxf6 {[%clk
0:00:02.6]} 51... Rxf3+ {[%clk 0:00:03.3]} 52. Kxg5 {[%clk 0:00:03.1]} 52...
Rxc3 {[%clk 0:00:04.2]} 53. Kf5 {[%clk 0:00:02.5]} 53... Rf3+ {[%clk 0:00:04.2]}
54. Kg6 {[%clk 0:00:02.1]} 54... e4 {[%clk 0:00:04.5]} 55. Ra1 {[%clk
0:00:02.3]} 55... e3 {[%clk 0:00:04.2]} 56. g5 {[%clk 0:00:02]} 56... Kd5 {[%clk
0:00:04.8]} 57. Kh7 {[%clk 0:00:01.3]} 57... Ke4 {[%clk 0:00:05.3]} 58. g6
{[%clk 0:00:01.5]} 58... Rh3+ {[%clk 0:00:05.9]} 59. Kg7 {[%clk 0:00:01.3]}
59... Kd3 {[%clk 0:00:06.1]} 60. Rd1+ {[%clk 0:00:01.6]} 60... Ke2 {[%clk
0:00:06]} 61. Rd5 {[%clk 0:00:02.2]} 61... Kf2 {[%clk 0:00:05.8]} 62. Rxb5
{[%clk 0:00:02.7]} 62... e2 {[%clk 0:00:05.8]} 63. Rf5+ {[%clk 0:00:03.2]} 63...
Rf3 {[%clk 0:00:05.6]} 64. Re5 {[%clk 0:00:03.6]} 64... Re3 {[%clk 0:00:06]} 65.
Rxe3 {[%clk 0:00:03.3]} 65... Kxe3 {[%clk 0:00:05.9]} 66. Kf8 {[%clk 0:00:03.7]}
66... e1=Q {[%clk 0:00:06.6]} 67. g7 {[%clk 0:00:04.6]} 67... Qxb4+ {[%clk
0:00:07.3]} 68. Kf7 {[%clk 0:00:05.1]} 68... Qf4+ {[%clk 0:00:07.7]} 69. Kg6
{[%clk 0:00:05.5]} 69... Qg4+ {[%clk 0:00:08]} 70. Kh7 {[%clk 0:00:06]} 70...
Qh5+ {[%clk 0:00:08.3]} 71. Kg8 {[%clk 0:00:06.5]} 71... Ke4 {[%clk 0:00:08.9]}
72. Kf8 {[%clk 0:00:07.1]} 72... Qf5+ {[%clk 0:00:09.5]} 73. Ke7 {[%clk
0:00:07.2]} 73... Qg5+ {[%clk 0:00:09.7]} 74. Kf7 {[%clk 0:00:08.1]} 74... Qf5+
{[%clk 0:00:08.9]} 75. Ke7 {[%clk 0:00:08.4]} 75... Qg6 {[%clk 0:00:08.9]} 76.
Kf8 {[%clk 0:00:08.5]} 76... Qf6+ {[%clk 0:00:09.4]} 77. Kg8 {[%clk 0:00:09]}
77... Kf5 {[%clk 0:00:09.4]} 0-1

[Event "*** Titled Tuesday Blitz"]
[Site "Chess.com"]
[Date "2020.04.14"]
[Round "3"]
[White "KarstenHansch"]
[Black "vinniethepooh"]
[Result "1-0"]
[WhiteElo "2426"]
[BlackElo "2622"]
[TimeControl "180+1"]
[EndTime "10:30:08 PDT"]
[Termination "KarstenHansch won by resignation"]

1. e4 {[%clk 0:03:00.9]} 1... c5 {[%clk 0:02:59.5]} 2. Nf3 {[%clk 0:03:00.9]}
2... d6 {[%clk 0:02:59]} 3. Bb5+ {[%clk 0:03:00.7]} 3... Nd7 {[%clk 0:02:58.8]}
4. O-O {[%clk 0:02:57.8]} 4... a6 {[%clk 0:02:58.4]} 5. Bd3 {[%clk 0:02:55.8]}
5... Ngf6 {[%clk 0:02:57.8]} 6. c3 {[%clk 0:02:55.7]} 6... b5 {[%clk 0:02:57.1]}
7. Bc2 {[%clk 0:02:55]} 7... Bb7 {[%clk 0:02:56.3]} 8. Qe2 {[%clk 0:02:53.4]}
8... c4 {[%clk 0:02:54.2]} 9. b3 {[%clk 0:02:49.9]} 9... Rc8 {[%clk 0:02:50.7]}
10. a4 {[%clk 0:02:48.7]} 10... Qc7 {[%clk 0:02:41.3]} 11. axb5 {[%clk
0:02:47.7]} 11... axb5 {[%clk 0:02:42.2]} 12. bxc4 {[%clk 0:02:47.4]} 12... bxc4
{[%clk 0:02:40.5]} 13. Na3 {[%clk 0:02:45.6]} 13... e5 {[%clk 0:02:27.3]} 14.
Rb1 {[%clk 0:02:40.3]} 14... Ba8 {[%clk 0:02:17.1]} 15. Nb5 {[%clk 0:02:39.2]}
15... Qa5 {[%clk 0:02:01.9]} 16. Ba3 {[%clk 0:02:29.3]} 16... Qa6 {[%clk
0:02:01.1]} 17. d3 {[%clk 0:02:15.4]} 17... Be7 {[%clk 0:01:09.3]} 18. dxc4
{[%clk 0:02:05.9]} 18... O-O {[%clk 0:01:09.3]} 19. Rfd1 {[%clk 0:02:04.4]}
19... Rc6 {[%clk 0:00:59.4]} 20. Ra1 {[%clk 0:01:50.7]} 20... Qb6 {[%clk
0:00:51.3]} 21. Bb4 {[%clk 0:01:22.6]} 21... Bb7 {[%clk 0:00:38.8]} 22. Na7
{[%clk 0:01:05.6]} 22... Rc7 {[%clk 0:00:21.6]} 23. Ba5 {[%clk 0:01:05.2]} 23...
Qxa7 {[%clk 0:00:22]} 24. Bxc7 {[%clk 0:01:03.3]} 24... Qc5 {[%clk 0:00:22.9]}
25. Ba5 {[%clk 0:01:02.7]} 25... Rc8 {[%clk 0:00:20.8]} 26. Bb4 {[%clk 0:01:01]}
26... Qxc4 {[%clk 0:00:14.3]} 27. Bd3 {[%clk 0:00:57.3]} 27... Qc7 {[%clk
0:00:10.8]} 28. Ra7 {[%clk 0:00:45.9]} 28... Qb6 {[%clk 0:00:10]} 29. Ra2 {[%clk
0:00:40.6]} 29... Nc5 {[%clk 0:00:09.3]} 30. Bxc5 {[%clk 0:00:37.6]} 30... Qxc5
{[%clk 0:00:10.2]} 31. c4 {[%clk 0:00:31.9]} 31... h6 {[%clk 0:00:10.1]} 32. Rb1
{[%clk 0:00:30.7]} 32... Bc6 {[%clk 0:00:09.7]} 33. Rab2 {[%clk 0:00:25.7]}
33... Bd7 {[%clk 0:00:09.5]} 34. Rb8 {[%clk 0:00:25.1]} 34... Kh7 {[%clk
0:00:08.9]} 35. Rxc8 {[%clk 0:00:24.8]} 35... Bxc8 {[%clk 0:00:09.8]} 36. Qe3
{[%clk 0:00:23.4]} 36... Qc6 {[%clk 0:00:06.1]} 37. h3 {[%clk 0:00:21.3]} 37...
Be6 {[%clk 0:00:06.1]} 38. Rb6 {[%clk 0:00:19.9]} 38... Qc8 {[%clk 0:00:04.4]}
39. g4 {[%clk 0:00:19.9]} 39... Nd7 {[%clk 0:00:04.6]} 40. Rb1 {[%clk
0:00:18.8]} 40... Nc5 {[%clk 0:00:05]} 41. Bc2 {[%clk 0:00:15]} 41... Qa6 {[%clk
0:00:04.9]} 42. g5 {[%clk 0:00:14.1]} 42... Bxh3 {[%clk 0:00:03.2]} 43. gxh6
{[%clk 0:00:13.7]} 43... gxh6 {[%clk 0:00:03.9]} 44. Kh2 {[%clk 0:00:12.4]}
44... Be6 {[%clk 0:00:03.7]} 45. Rg1 {[%clk 0:00:11.6]} 45... Qc8 {[%clk
0:00:03.7]} 46. Rg3 {[%clk 0:00:11.1]} 46... Qf8 {[%clk 0:00:03.9]} 47. Bd3
{[%clk 0:00:10.6]} 47... Nd7 {[%clk 0:00:03.4]} 48. Be2 {[%clk 0:00:10.5]} 48...
Nc5 {[%clk 0:00:03.4]} 49. Ng1 {[%clk 0:00:10.5]} 49... f5 {[%clk 0:00:03.7]}
50. exf5 {[%clk 0:00:10.3]} 50... Qxf5 {[%clk 0:00:04.6]} 51. Bg4 {[%clk
0:00:09]} 51... Qxg4 {[%clk 0:00:03.2]} 52. Rxg4 {[%clk 0:00:08.9]} 52... Bxg4
{[%clk 0:00:04.1]} 53. f3 {[%clk 0:00:08.8]} 53... Be6 {[%clk 0:00:04.3]} 54. f4
{[%clk 0:00:09.1]} 54... Bf6 {[%clk 0:00:03.4]} 55. Nf3 {[%clk 0:00:08.6]} 55...
Bxc4 {[%clk 0:00:03.6]} 56. fxe5 {[%clk 0:00:08.4]} 56... Bxe5+ {[%clk
0:00:03.7]} 57. Nxe5 {[%clk 0:00:08.7]} 57... dxe5 {[%clk 0:00:04.6]} 58. Qxe5
{[%clk 0:00:09.6]} 58... Nd3 {[%clk 0:00:03.1]} 59. Qe4+ {[%clk 0:00:09.2]}
59... Kg7 {[%clk 0:00:03.7]} 60. Qxc4 {[%clk 0:00:10.1]} 60... Ne5 {[%clk
0:00:04.4]} 61. Qd4 {[%clk 0:00:10]} 61... Kf6 {[%clk 0:00:04.7]} 62. Qd6+
{[%clk 0:00:09.9]} 62... Kf5 {[%clk 0:00:04.6]} 63. Kh3 {[%clk 0:00:10.2]} 63...
Ng6 {[%clk 0:00:03.7]} 64. Qd5+ {[%clk 0:00:09.7]} 64... Kf6 {[%clk 0:00:04.2]}
65. Kg4 {[%clk 0:00:08.3]} 65... h5+ {[%clk 0:00:03.7]} 66. Qxh5 {[%clk
0:00:07.1]} 66... Ne5+ {[%clk 0:00:04]} 67. Kf4 {[%clk 0:00:07]} 67... Ng6+
{[%clk 0:00:04.4]} 68. Ke4 {[%clk 0:00:07.2]} 1-0

[Event "*** Titled Tuesday Blitz"]
[Site "Chess.com"]
[Date "2020.04.14"]
[Round "3"]
[White "Vusatiuk_Vladimir"]
[Black "StegariuVlad"]
[Result "0-1"]
[WhiteElo "2372"]
[BlackElo "2594"]
[TimeControl "180+1"]
[EndTime "10:30:09 PDT"]
[Termination "StegariuVlad won by checkmate"]

1. e4 {[%clk 0:03:00.9]} 1... e5 {[%clk 0:02:59.6]} 2. Nf3 {[%clk 0:03:00]} 2...
Nc6 {[%clk 0:02:59.2]} 3. d4 {[%clk 0:03:00.2]} 3... exd4 {[%clk 0:02:59.2]} 4.
Nxd4 {[%clk 0:03:01.1]} 4... Nf6 {[%clk 0:02:59.3]} 5. Nxc6 {[%clk 0:03:01.1]}
5... bxc6 {[%clk 0:02:59]} 6. e5 {[%clk 0:03:01.2]} 6... Qe7 {[%clk 0:02:58.5]}
7. Qe2 {[%clk 0:03:01.7]} 7... Nd5 {[%clk 0:02:58.4]} 8. h4 {[%clk 0:03:02.3]}
8... Qe6 {[%clk 0:02:53.5]} 9. Nd2 {[%clk 0:03:00.1]} 9... a5 {[%clk 0:02:47.6]}
10. g3 {[%clk 0:02:51.6]} 10... Ba6 {[%clk 0:02:46.9]} 11. c4 {[%clk 0:02:50.9]}
11... Nb4 {[%clk 0:02:46.5]} 12. Bh3 {[%clk 0:02:48]} 12... f5 {[%clk
0:02:33.8]} 13. O-O {[%clk 0:02:44.1]} 13... Nc2 {[%clk 0:02:26.4]} 14. Rb1
{[%clk 0:02:40.7]} 14... Nd4 {[%clk 0:02:24.6]} 15. Qd3 {[%clk 0:02:32.5]} 15...
Bc5 {[%clk 0:02:22.1]} 16. b3 {[%clk 0:02:13.3]} 16... O-O {[%clk 0:02:18.6]}
17. Ne4 {[%clk 0:01:46.9]} 17... Ba7 {[%clk 0:01:56.6]} 18. Bf4 {[%clk
0:01:17.8]} 18... Qg6 {[%clk 0:01:28.4]} 19. Nc3 {[%clk 0:01:02.1]} 19... Ne6
{[%clk 0:01:27.8]} 20. Ne2 {[%clk 0:00:45.6]} 20... Rad8 {[%clk 0:01:21]} 21.
Kh2 {[%clk 0:00:42.8]} 21... Qh5 {[%clk 0:01:19.2]} 22. Rbd1 {[%clk 0:00:30.7]}
22... h6 {[%clk 0:01:18.7]} 23. Be3 {[%clk 0:00:26.9]} 23... Bxe3 {[%clk
0:01:13.1]} 24. Qxe3 {[%clk 0:00:27.8]} 24... f4 {[%clk 0:01:11.9]} 25. Qe4
{[%clk 0:00:27.6]} 25... f3 {[%clk 0:00:58]} 26. Bxe6+ {[%clk 0:00:23.5]} 26...
dxe6 {[%clk 0:00:57.9]} 27. Nf4 {[%clk 0:00:23.5]} 27... Qg4 {[%clk 0:00:57.9]}
28. Rxd8 {[%clk 0:00:16]} 28... Rxd8 {[%clk 0:00:57.4]} 29. Qxc6 {[%clk
0:00:16.5]} 29... Bc8 {[%clk 0:00:57.2]} 30. Qxc7 {[%clk 0:00:15.9]} 30... Rf8
{[%clk 0:00:57.2]} 31. Qc6 {[%clk 0:00:13.3]} 31... Rxf4 {[%clk 0:00:46.3]} 32.
Qxc8+ {[%clk 0:00:12.6]} 32... Kh7 {[%clk 0:00:46.5]} 33. Qd8 {[%clk 0:00:11.1]}
33... Rf5 {[%clk 0:00:45.6]} 34. Rd1 {[%clk 0:00:10.5]} 34... Qe4 {[%clk
0:00:29.6]} 35. Qd4 {[%clk 0:00:10.2]} 35... Qe2 {[%clk 0:00:28.3]} 36. Qd2
{[%clk 0:00:10.2]} 36... Rxe5 {[%clk 0:00:25.2]} 37. Qxe2 {[%clk 0:00:10]} 37...
Rxe2 {[%clk 0:00:25.3]} 38. Kg1 {[%clk 0:00:09.3]} 38... Rxa2 {[%clk 0:00:25.4]}
39. Rc1 {[%clk 0:00:09.4]} 39... Rd2 {[%clk 0:00:22.1]} 40. c5 {[%clk
0:00:09.2]} 40... Rd7 {[%clk 0:00:22.1]} 41. Rc3 {[%clk 0:00:08.5]} 41... Rc7
{[%clk 0:00:21.7]} 42. Kf1 {[%clk 0:00:08.9]} 42... Kg6 {[%clk 0:00:20.1]} 43.
Ke1 {[%clk 0:00:09.5]} 43... Kf5 {[%clk 0:00:20.1]} 44. Kd2 {[%clk 0:00:10]}
44... Ke4 {[%clk 0:00:20.3]} 45. Rc4+ {[%clk 0:00:09.4]} 45... Kd5 {[%clk
0:00:20.3]} 46. Ke3 {[%clk 0:00:07.3]} 46... Rxc5 {[%clk 0:00:20.2]} 47. Rd4+
{[%clk 0:00:05.8]} 47... Ke5 {[%clk 0:00:20.4]} 48. Re4+ {[%clk 0:00:06.2]}
48... Kd6 {[%clk 0:00:20.8]} 49. Kxf3 {[%clk 0:00:03.5]} 49... Rc3+ {[%clk
0:00:21.3]} 50. Re3 {[%clk 0:00:03.7]} 50... Rxe3+ {[%clk 0:00:21.4]} 51. Kxe3
{[%clk 0:00:03.9]} 51... Kc5 {[%clk 0:00:22]} 52. Kd3 {[%clk 0:00:04.4]} 52...
Kb4 {[%clk 0:00:22.3]} 53. Kc2 {[%clk 0:00:04.8]} 53... e5 {[%clk 0:00:22.6]}
54. Kb2 {[%clk 0:00:04.8]} 54... e4 {[%clk 0:00:23]} 55. Kc2 {[%clk 0:00:05.3]}
55... g6 {[%clk 0:00:21.9]} 56. Kb2 {[%clk 0:00:05.6]} 56... Kc5 {[%clk
0:00:22]} 57. Kc3 {[%clk 0:00:05.2]} 57... Kd5 {[%clk 0:00:22.5]} 58. Kc2 {[%clk
0:00:05.2]} 58... Kd4 {[%clk 0:00:22.6]} 59. Kd2 {[%clk 0:00:05.7]} 59... Kd5
{[%clk 0:00:21.4]} 60. Ke3 {[%clk 0:00:04.4]} 60... Ke5 {[%clk 0:00:21.6]} 61.
g4 {[%clk 0:00:03.3]} 61... Kd5 {[%clk 0:00:20.3]} 62. Ke2 {[%clk 0:00:02.9]}
62... Ke5 {[%clk 0:00:19.2]} 63. Ke3 {[%clk 0:00:03.2]} 63... g5 {[%clk
0:00:19.2]} 64. hxg5 {[%clk 0:00:02.8]} 64... hxg5 {[%clk 0:00:19.4]} 65. f3
{[%clk 0:00:03]} 65... exf3 {[%clk 0:00:19.3]} 66. Kxf3 {[%clk 0:00:03.9]} 66...
Kd4 {[%clk 0:00:19.7]} 67. Kg3 {[%clk 0:00:04.3]} 67... Ke4 {[%clk 0:00:20]} 68.
Kg2 {[%clk 0:00:03.5]} 68... Kf4 {[%clk 0:00:20.2]} 69. Kh3 {[%clk 0:00:04.4]}
69... Kf3 {[%clk 0:00:20.4]} 70. Kh2 {[%clk 0:00:04.8]} 70... Kxg4 {[%clk
0:00:20.8]} 71. Kg2 {[%clk 0:00:05.7]} 71... Kf4 {[%clk 0:00:21.3]} 72. Kf2
{[%clk 0:00:06.3]} 72... g4 {[%clk 0:00:21.6]} 73. Kg2 {[%clk 0:00:06.9]} 73...
g3 {[%clk 0:00:20.2]} 74. Kg1 {[%clk 0:00:06.5]} 74... Kg4 {[%clk 0:00:20.5]}
75. Kg2 {[%clk 0:00:06.8]} 75... Kf4 {[%clk 0:00:20.8]} 76. Kg1 {[%clk
0:00:07.1]} 76... Kf3 {[%clk 0:00:21.1]} 77. Kf1 {[%clk 0:00:07.2]} 77... g2+
{[%clk 0:00:21.4]} 78. Kg1 {[%clk 0:00:07.7]} 78... Kg3 {[%clk 0:00:20.6]} 79.
b4 {[%clk 0:00:07.5]} 79... a4 {[%clk 0:00:17.9]} 80. b5 {[%clk 0:00:07.3]}
80... a3 {[%clk 0:00:18.5]} 81. b6 {[%clk 0:00:08.1]} 81... a2 {[%clk 0:00:19]}
82. b7 {[%clk 0:00:09]} 82... a1=R# {[%clk 0:00:18.6]} 0-1

[Event "*** Titled Tuesday Blitz"]
[Site "Chess.com"]
[Date "2020.04.14"]
[Round "3"]
[White "suyu28"]
[Black "Bulldog167"]
[Result "0-1"]
[WhiteElo "2534"]
[BlackElo "2750"]
[TimeControl "180+1"]
[EndTime "10:30:16 PDT"]
[Termination "Bulldog167 won by resignation"]

1. d4 {[%clk 0:02:57.8]} 1... Nf6 {[%clk 0:02:59.9]} 2. c4 {[%clk 0:02:56.1]}
2... e6 {[%clk 0:02:59]} 3. Nc3 {[%clk 0:02:56.3]} 3... d5 {[%clk 0:02:59.4]} 4.
cxd5 {[%clk 0:02:55.9]} 4... exd5 {[%clk 0:03:00.3]} 5. Bg5 {[%clk 0:02:56.1]}
5... c6 {[%clk 0:03:00.9]} 6. e3 {[%clk 0:02:56.6]} 6... Be7 {[%clk 0:03:01.5]}
7. Bd3 {[%clk 0:02:56.7]} 7... Nbd7 {[%clk 0:03:02.1]} 8. Nge2 {[%clk
0:02:57.1]} 8... Nh5 {[%clk 0:03:02.4]} 9. Bxe7 {[%clk 0:02:57]} 9... Qxe7
{[%clk 0:03:03.3]} 10. g4 {[%clk 0:02:57.3]} 10... Nhf6 {[%clk 0:03:03.7]} 11.
Ng3 {[%clk 0:02:57.5]} 11... g6 {[%clk 0:03:03.7]} 12. g5 {[%clk 0:02:56.9]}
12... Ng8 {[%clk 0:03:04]} 13. h4 {[%clk 0:02:57.2]} 13... h6 {[%clk 0:03:02.7]}
14. gxh6 {[%clk 0:02:51.9]} 14... Nxh6 {[%clk 0:03:00.7]} 15. h5 {[%clk
0:02:50.9]} 15... g5 {[%clk 0:02:59.8]} 16. Qc2 {[%clk 0:02:46.8]} 16... Nf6
{[%clk 0:02:53.5]} 17. O-O-O {[%clk 0:02:46.8]} 17... Bg4 {[%clk 0:02:52]} 18.
Rde1 {[%clk 0:02:45.7]} 18... O-O-O {[%clk 0:02:42.4]} 19. e4 {[%clk 0:02:10.6]}
19... dxe4 {[%clk 0:02:41.9]} 20. Ngxe4 {[%clk 0:02:10.4]} 20... Nxe4 {[%clk
0:02:42]} 21. Bxe4 {[%clk 0:01:50.9]} 21... Qc7 {[%clk 0:02:38.2]} 22. d5 {[%clk
0:01:44.9]} 22... f5 {[%clk 0:02:20.7]} 23. Bg2 {[%clk 0:01:41.1]} 23... cxd5
{[%clk 0:02:19.3]} 24. Bxd5 {[%clk 0:01:37]} 24... Kb8 {[%clk 0:02:12.8]} 25.
Qb3 {[%clk 0:01:04]} 25... f4 {[%clk 0:01:41.9]} 26. Kb1 {[%clk 0:01:03]} 26...
Bc8 {[%clk 0:01:25.4]} 27. Ka1 {[%clk 0:00:59]} 27... Ng4 {[%clk 0:01:20.1]} 28.
Re2 {[%clk 0:00:54.1]} 28... Nf6 {[%clk 0:01:05.5]} 29. Bf7 {[%clk 0:00:53.6]}
29... Bg4 {[%clk 0:01:00.9]} 30. Ree1 {[%clk 0:00:45.5]} 30... Bxh5 {[%clk
0:01:01]} 31. Bxh5 {[%clk 0:00:42.5]} 31... Rxh5 {[%clk 0:01:01.9]} 32. Rxh5
{[%clk 0:00:40.2]} 32... Nxh5 {[%clk 0:01:02.8]} 33. Qb5 {[%clk 0:00:40.3]}
33... Qg7 {[%clk 0:00:45.9]} 34. Re8 {[%clk 0:00:35.8]} 34... Qd4 {[%clk
0:00:34.6]} 35. a4 {[%clk 0:00:31]} 35... a6 {[%clk 0:00:33.1]} 36. Rxd8+ {[%clk
0:00:21.7]} 36... Qxd8 {[%clk 0:00:34]} 37. Qe5+ {[%clk 0:00:21.9]} 37... Ka8
{[%clk 0:00:34]} 38. Nd5 {[%clk 0:00:22.2]} 38... Ka7 {[%clk 0:00:18.1]} 39.
Qd4+ {[%clk 0:00:22.1]} 39... Kb8 {[%clk 0:00:17.7]} 40. Qe5+ {[%clk 0:00:22.3]}
40... Ka8 {[%clk 0:00:17.8]} 41. Nc7+ {[%clk 0:00:21.5]} 41... Ka7 {[%clk
0:00:17.8]} 42. Nd5 {[%clk 0:00:20.3]} 42... Ng7 {[%clk 0:00:16.2]} 43. Qd4+
{[%clk 0:00:19.8]} 43... Kb8 {[%clk 0:00:16]} 44. Qe5+ {[%clk 0:00:20.1]} 44...
Ka8 {[%clk 0:00:16.6]} 45. Nc7+ {[%clk 0:00:18.5]} 45... Ka7 {[%clk 0:00:17]}
46. Qxg7 {[%clk 0:00:14.5]} 46... Qd1+ {[%clk 0:00:16.8]} 47. Ka2 {[%clk
0:00:15]} 47... Qxa4+ {[%clk 0:00:17.7]} 48. Kb1 {[%clk 0:00:15.5]} 48... Qe4+
{[%clk 0:00:14]} 49. Ka2 {[%clk 0:00:14.8]} 49... Qa4+ {[%clk 0:00:11.1]} 50.
Kb1 {[%clk 0:00:15]} 50... Qe4+ {[%clk 0:00:10.3]} 51. Ka2 {[%clk 0:00:13.8]}
51... Qc4+ {[%clk 0:00:10.9]} 52. Ka1 {[%clk 0:00:12.6]} 52... Qf1+ {[%clk
0:00:11.1]} 53. Ka2 {[%clk 0:00:13]} 53... Qxf2 {[%clk 0:00:12]} 54. Nd5 {[%clk
0:00:12.8]} 54... Qc5 {[%clk 0:00:09.8]} 55. Qxg5 {[%clk 0:00:10]} 55... f3
{[%clk 0:00:09.4]} 56. Qf5 {[%clk 0:00:09.3]} 56... f2 {[%clk 0:00:07.2]} 57. b3
{[%clk 0:00:05.5]} 57... Qa5+ {[%clk 0:00:05]} 58. Kb2 {[%clk 0:00:05.4]} 58...
Qd2+ {[%clk 0:00:05.2]} 59. Ka3 {[%clk 0:00:05.6]} 59... Qc1+ {[%clk 0:00:05.6]}
60. Kb4 {[%clk 0:00:06.2]} 60... f1=Q {[%clk 0:00:03.6]} 61. Qe4 {[%clk
0:00:05.8]} 61... Qfe1+ {[%clk 0:00:03.5]} 62. Qxe1 {[%clk 0:00:03.7]} 62...
Qxe1+ {[%clk 0:00:04.4]} 63. Kc5 {[%clk 0:00:03.2]} 63... Qh4 {[%clk 0:00:04.9]}
64. Kd6 {[%clk 0:00:03.2]} 64... Qf2 {[%clk 0:00:05.8]} 65. Nc7 {[%clk
0:00:02.9]} 65... Qf3 {[%clk 0:00:05.9]} 66. Nd5 {[%clk 0:00:02.3]} 66... Qxb3
{[%clk 0:00:05.9]} 67. Ne7 {[%clk 0:00:02.2]} 67... a5 {[%clk 0:00:06.3]} 68.
Kc7 {[%clk 0:00:02.4]} 68... Qc4+ {[%clk 0:00:06]} 69. Kd7 {[%clk 0:00:02.3]}
69... a4 {[%clk 0:00:06.3]} 70. Nf5 {[%clk 0:00:01.2]} 70... Qd5+ {[%clk
0:00:05.8]} 71. Nd6 {[%clk 0:00:01.6]} 71... a3 {[%clk 0:00:06.2]} 72. Kc7
{[%clk 0:00:02.2]} 72... Qxd6+ {[%clk 0:00:06.7]} 73. Kxd6 {[%clk 0:00:02.6]}
73... a2 {[%clk 0:00:07.6]} 74. Kc7 {[%clk 0:00:03.1]} 74... a1=Q {[%clk
0:00:08.5]} 75. Kc8 {[%clk 0:00:03.7]} 75... Qc1+ {[%clk 0:00:09]} 76. Kd8
{[%clk 0:00:04.1]} 76... b5 {[%clk 0:00:09.9]} 77. Ke8 {[%clk 0:00:04.7]} 77...
Qc7 {[%clk 0:00:09.3]} 78. Kf8 {[%clk 0:00:04.9]} 78... b4 {[%clk 0:00:09.8]}
0-1